bitfinex-derivatives/quotes_SOLF0:USTF0_20220104
["timestamp","ask_amount","ask_price","bid_price","bid_amount"]
[1641257324587,40.20909122,168.87,168.79,27.66479]
[1641257324786,12.54430122,168.84,168.79,31.84715343]
[1641257325690,12.54430122,168.83,168.79,31.84715343]
[1641257327592,12.54430122,168.82,168.79,27.66479]
[1641257332596,12.54430122,168.83,168.79,59.51194343]
[1641257333394,12.54430122,168.83,168.79,63.49273967]
[1641257334395,12.54430122,168.83,168.79,59.31037624]
[1641257334797,12.54430122,168.83,168.79,55.32958]
[1641257334996,12.54430122,168.83,168.79,59.51194343]
[1641257335997,4.18133256,168.81,168.8,5.23265373]
[1641257337703,10.93533256,168.81,168.8,5.23265373]
[1641257337899,6.754,168.81,168.79,4.18236343]
[1641257338699,6.754,168.81,168.78,1.0502903]
[1641257338700,3.13144748,168.8,168.78,5.23265373]
[1641257339398,3.13144748,168.8,168.78,4.18236343]
[1641257340104,3.13144748,168.8,168.78,6.343e-05]
[1641257340301,3.13144748,168.8,168.76,1.0502903]
[1641257340302,15.6757487,168.8,168.76,1.05035373]
[1641257340904,15.6757487,168.8,168.74,8.78]
[1641257340905,4.15712331,168.8,168.74,8.78]
[1641257343207,4.15712331,168.78,168.74,8.78]
[1641257344007,7.15712331,168.78,168.72,3.34525277]
[1641257344207,3.0,168.77,168.72,3.34525277]
[1641257344409,3.0,168.75,168.72,3.34525277]
[1641257344606,3.0,168.76,168.7,6.343e-05]
[1641257344813,27.66479,168.74,168.68,6.343e-05]
[1641257346412,4.15712331,168.72,168.66,12.30525277]
[1641257346912,10.47312331,168.72,168.66,12.30525277]
[1641257348512,3.0,168.71,168.66,3.34525277]
[1641257348711,3.0,168.71,168.65,8.9]
[1641257348910,13.47312331,168.72,168.64,6.343e-05]
[1641257349113,4.15712331,168.7,168.63,27.66479]
[1641257349310,7.15712331,168.7,168.63,27.66479]
[1641257349916,4.15712331,168.7,168.63,27.66479]
[1641257350112,3.0,168.68,168.63,27.66479]
[1641257350312,7.15712331,168.7,168.63,27.66479]
[1641257350512,7.15712331,168.7,168.68,6.343e-05]
[1641257350513,3.13540132,168.7,168.68,6.343e-05]
[1641257350714,6.13540132,168.7,168.68,6.343e-05]
[1641257350912,3.13540132,168.7,168.68,6.343e-05]
[1641257351320,3.13540132,168.69,168.67,6.343e-05]
[1641257352519,3.13540132,168.69,168.68,6.343e-05]
[1641257354317,3.0,168.7,168.64,19.18173781]
[1641257354817,3.0,168.7,168.64,13.59364718]
[1641257355119,3.13552283,168.69,168.67,4.18484855]
[1641257355916,3.0,168.7,168.64,1.04934596]
[1641257356118,3.0,168.69,168.64,1.04934596]
[1641257356320,3.0,168.69,168.67,4.18487469]
[1641257356518,15.54430122,168.71,168.67,4.18487469]
[1641257357019,3.13566962,168.68,168.64,1.04934596]
[1641257357919,12.54430122,168.71,168.63,40.20909122]
[1641257358120,12.54430122,168.69,168.65,4.18474249]
[1641257359021,12.54430122,168.7,168.66,4.18453803]
[1641257359221,12.54430122,168.7,168.66,31.84932803]
[1641257360325,12.54430122,168.7,168.66,27.66479]
[1641257361125,12.54430122,168.7,168.66,31.84946717]
[1641257361525,12.54430122,168.7,168.66,27.66479]
[1641257361827,15.67969678,168.72,168.67,5.23374451]
[1641257362324,15.67969678,168.72,168.66,27.66479]
[1641257363627,15.67969678,168.72,168.67,5.23367627]
[1641257364229,12.54430122,168.71,168.66,27.66479]
[1641257365029,15.67969678,168.71,168.66,31.84930475]
[1641257365430,15.67969678,168.71,168.7,27.66479]
[1641257365630,15.67969678,168.71,168.7,32.14779]
[1641257365830,3.13539556,168.71,168.7,32.14779]
[1641257366030,4.18343496,168.73,168.7,32.14779]
[1641257366430,3.13539556,168.75,168.7,32.14779]
[1641257366631,65.0756,168.76,168.72,4.18342469]
[1641257366832,12.54430122,168.77,168.72,4.18342469]
[1641257367230,12.54430122,168.77,168.7,32.14779]
[1641257367431,12.54430122,168.77,168.75,27.66479]
[1641257367933,12.54430122,168.77,168.7,32.14779]
[1641257368131,12.54430122,168.78,168.74,4.18301191]
[1641257368934,12.54430122,168.78,168.71,66.78479301]
[1641257369133,12.54430122,168.78,168.71,1.04969301]
[1641257369332,12.54430122,168.78,168.73,27.66479]
[1641257369734,12.54430122,168.79,168.75,4.18289039]
[1641257370336,12.54430122,168.79,168.73,27.66479]
[1641257370534,12.54430122,168.78,168.74,5.23277544]
[1641257371036,12.54430122,168.78,168.73,27.66479]
[1641257371635,12.54430122,168.78,168.7,40.20909122]
[1641257371837,12.54430122,168.78,168.74,5.23272502]
[1641257372437,3.0,168.77,168.7,12.54430122]
[1641257372636,3.0,168.77,168.66,42.29079548]
[1641257372637,12.54430122,168.76,168.71,4.18367701]
[1641257372838,15.54430122,168.76,168.71,4.18367701]
[1641257373236,12.54430122,168.76,168.67,63.0244]
[1641257373439,12.54430122,168.73,168.68,5.23339557]
[1641257374038,12.54430122,168.73,168.67,27.66479]
[1641257374841,12.54430122,168.73,168.68,5.2333566]
[1641257375941,12.54430122,168.73,168.67,27.66479]
[1641257375942,12.54430122,168.72,168.67,31.84883036]
[1641257376742,12.54430122,168.72,168.67,34.84883036]
[1641257376942,12.54430122,168.72,168.67,30.66479]
[1641257377143,11.14419159,168.74,168.67,30.66479]
[1641257377144,12.54430122,168.73,168.68,5.2333748]
[1641257377344,12.54430122,168.73,168.72,27.66479]
[1641257377544,12.54430122,168.73,168.72,33.73479]
[1641257377744,12.54430122,168.75,168.72,33.73479]
[1641257377946,12.54430122,168.75,168.72,6.07]
[1641257378446,12.54430122,168.74,168.72,6.07]
[1641257378646,12.54430122,168.74,168.7,4.18345091]
[1641257379346,44.57498707,168.78,168.72,27.66479]
[1641257379546,12.54949398,168.75,168.72,27.66479]
[1641257380950,12.54949398,168.76,168.72,31.84799078]
[1641257381853,12.54862899,168.78,168.74,4.18287633]
[1641257382551,12.54862899,168.78,168.72,27.66479]
[1641257382750,12.54862899,168.76,168.72,31.84801477]
[1641257383151,12.54862899,168.76,168.72,27.66479]
[1641257383955,63.3767,168.79,168.73,5.23278817]
[1641257383956,12.54862899,168.77,168.73,5.23278817]
[1641257384653,12.54862899,168.77,168.72,27.66479]
[1641257385456,12.54862899,168.77,168.73,5.23274456]
[1641257385955,12.54862899,168.77,168.72,27.66479]
[1641257386655,12.54862899,168.77,168.73,5.23274526]
[1641257387256,12.54862899,168.77,168.72,27.66479]
[1641257387458,12.54862899,168.76,168.72,31.84805869]
[1641257388157,12.54862899,168.76,168.73,4.18326686]
[1641257388357,4.83,168.77,168.73,5.23290891]
[1641257388856,3.1335743,168.76,168.72,27.66479]
[1641257389458,4.83,168.77,168.73,1.04968336]
[1641257390261,3.13364011,168.76,168.73,4.18327961]
[1641257390859,15.68227293,168.78,168.73,1.04963886]
[1641257391662,3.0,168.75,168.73,4.18339491]
[1641257391866,6.042,168.75,168.7,3.34682244]
[1641257392063,9.042,168.75,168.69,12.55162556]
[1641257392563,6.042,168.75,168.69,12.55162556]
[1641257392866,3.13364394,168.74,168.71,1.04926619]
[1641257393463,18.59062899,168.75,168.67,13.60115342]
[1641257393662,18.59062899,168.75,168.67,41.26594342]
[1641257394670,3.13435046,168.74,168.68,1.04952786]
[1641257395471,12.54862899,168.73,168.68,1.04952786]
[1641257395871,12.54862899,168.73,168.67,27.66479]
[1641257396071,15.68277782,168.74,168.67,27.66479]
[1641257396671,15.68277782,168.74,168.68,1.04957286]
[1641257397271,3.13414883,168.74,168.67,27.66479]
[1641257397472,3.13414883,168.74,168.67,30.66479]
[1641257397773,3.13414883,168.74,168.67,27.66479]
[1641257398173,75.95362899,168.75,168.67,27.66479]
[1641257398373,75.95362899,168.75,168.68,1.04932697]
[1641257398775,3.13419367,168.74,168.67,43.21641556]
[1641257398974,3.13419367,168.74,168.68,6.98079624]
[1641257399274,3.13419367,168.74,168.69,3.0]
[1641257399474,12.54862899,168.75,168.69,3.0]
[1641257399876,12.54862899,168.75,168.73,27.66479]
[1641257400475,12.54862899,168.77,168.73,27.66479]
[1641257400676,12.54862899,168.77,168.7,1.04888679]
[1641257400876,17.59962899,168.77,168.7,1.04888679]
[1641257401074,12.54862899,168.76,168.69,60.9554]
[1641257401877,12.54862899,168.75,168.71,27.66479]
[1641257402676,12.54862899,168.76,168.72,1.04895744]
[1641257403676,15.67611296,168.79,168.71,27.66479]
[1641257403877,15.67611296,168.79,168.71,55.32958]
[1641257404379,15.67611296,168.79,168.71,58.67660891]
[1641257404578,15.67611296,168.79,168.72,1.04896693]
[1641257405379,15.67611296,168.79,168.71,58.67660891]
[1641257406085,15.67611296,168.79,168.72,1.04896878]
[1641257406682,15.67611296,168.79,168.71,3.34702891]
[1641257407081,15.67611296,168.79,168.7,15.89865447]
[1641257407283,15.67611296,168.79,168.72,1.0489891]
[1641257407482,15.67611296,168.79,168.72,5.1909891]
[1641257407783,15.67611296,168.79,168.73,1.04899055]
[1641257408181,15.67611296,168.79,168.73,28.71378055]
[1641257408781,15.67611296,168.79,168.74,1.04937908]
[1641257409381,15.67611296,168.79,168.73,27.66479]
[1641257409581,12.54425091,168.78,168.73,27.66479]
[1641257409781,12.54425091,168.78,168.71,27.66479]
[1641257410582,15.54425091,168.78,168.71,27.66479]
[1641257410783,12.54425091,168.76,168.71,27.66479]
[1641257410985,12.54425091,168.76,168.68,40.21641556]
[1641257411388,12.54425091,168.73,168.68,27.66479]
[1641257411587,16.98425091,168.73,168.68,27.66479]
[1641257411987,19.98425091,168.73,168.68,27.66479]
[1641257412187,16.98425091,168.73,168.66,8.86]
[1641257412392,27.66479,168.72,168.65,89.0]
[1641257412590,91.02645205,168.72,168.65,89.0]
[1641257412787,91.02645205,168.72,168.64,12.55162556]
[1641257413189,12.54425091,168.7,168.66,1.04930327]
[1641257413989,12.54425091,168.7,168.63,27.66479]
[1641257414289,12.54425091,168.67,168.6,36.36479]
[1641257414787,3.0,168.66,168.6,36.36479]
[1641257414990,18.48125091,168.67,168.6,36.36479]
[1641257415190,21.48125091,168.67,168.61,1.04894993]
[1641257415390,5.92715526,168.66,168.59,12.55162556]
[1641257415590,8.92803367,168.64,168.55,42.25079548]
[1641257415790,5.92926388,168.6,168.55,33.43079548]
[1641257415992,3.0,168.58,168.55,33.43079548]
[1641257416191,3.0,168.57,168.55,33.43079548]
[1641257416393,55.32958,168.56,168.52,33.43079548]
[1641257416592,61.62358,168.56,168.52,33.43079548]
[1641257417491,61.62358,168.56,168.46,12.229975]
[1641257417492,61.62358,168.56,168.46,17.81525412]
[1641257418098,55.32958,168.56,168.46,17.81525412]
[1641257418496,55.32958,168.56,168.48,6.98079624]
[1641257418697,55.32958,168.56,168.47,40.41159172]
[1641257418899,36.43079548,168.63,168.48,3.0]
[1641257419099,33.43079548,168.63,168.55,3.0]
[1641257419300,33.43079548,168.63,168.56,3.98079624]
[1641257419597,33.43079548,168.63,168.55,4.988]
[1641257420302,27.66479,168.59,168.5,61.09558548]
[1641257421702,27.66479,168.59,168.51,5.58527912]
[1641257422402,3.0,168.58,168.51,5.58527912]
[1641257422702,33.89079,168.59,168.51,5.58527912]
[1641257423102,3.0,168.58,168.51,5.58527912]
[1641257423604,33.89079,168.59,168.49,39.3572482]
[1641257424906,33.89079,168.59,168.49,54.36684439]
[1641257425107,27.66479,168.59,168.49,54.36684439]
[1641257425508,3.0,168.58,168.49,54.36684439]
[1641257425707,3.0,168.58,168.49,11.51173184]
[1641257426408,3.0,168.58,168.49,5.58527912]
[1641257426609,3.0,168.57,168.49,5.58527912]
[1641257426810,3.0,168.56,168.49,5.58527912]
[1641257427708,3.0,168.57,168.48,27.66479]
[1641257427908,27.66479,168.59,168.48,27.66479]
[1641257428110,3.0,168.58,168.48,27.66479]
[1641257428509,3.0,168.57,168.48,27.66479]
[1641257429711,27.66479,168.59,168.48,27.66479]
[1641257430113,27.66479,168.59,168.48,33.59159397]
[1641257430413,27.66479,168.59,168.48,27.66479]
[1641257430613,27.66479,168.59,168.48,30.66479]
[1641257430812,27.66479,168.61,168.5,3.0]
[1641257431012,27.66479,168.61,168.5,9.281]
[1641257431912,27.66479,168.61,168.5,6.281]
[1641257432312,27.66479,168.58,168.5,6.281]
[1641257434916,27.66479,168.61,168.5,6.281]
[1641257435415,27.66479,168.61,168.5,9.281]
[1641257435722,27.66479,168.61,168.5,6.281]
[1641257436218,27.66479,168.61,168.49,55.42195875]
[1641257436417,27.66479,168.61,168.54,27.66479]
[1641257436617,27.66479,168.61,168.54,32.97979]
[1641257437820,27.66479,168.61,168.54,5.315]
[1641257438219,27.66479,168.61,168.5,6.687]
[1641257438418,30.66479,168.61,168.5,6.687]
[1641257438618,30.66479,168.61,168.5,12.27298181]
[1641257438818,27.66479,168.61,168.5,12.27298181]
[1641257440518,27.66479,168.61,168.52,27.66479]
[1641257441218,30.66479,168.61,168.52,27.66479]
[1641257441420,3.0,168.6,168.53,5.58598181]
[1641257441618,30.66479,168.61,168.53,5.58598181]
[1641257442418,27.66479,168.61,168.53,5.58598181]
[1641257445722,27.66479,168.61,168.55,12.56081206]
[1641257446622,27.66479,168.61,168.55,17.56881206]
[1641257447323,27.66479,168.61,168.56,12.56081206]
[1641257448125,40.22560206,168.61,168.55,5.008]
[1641257450325,27.66479,168.61,168.52,36.64479]
[1641257452431,15.56081206,168.64,168.52,36.64479]
[1641257452432,4.17131491,168.6,168.55,3.0]
[1641257452633,12.56081206,168.64,168.57,6.98079624]
[1641257452831,12.56081206,168.64,168.56,27.66479]
[1641257453236,12.56081206,168.64,168.56,34.64558624]
[1641257453432,12.56081206,168.64,168.56,31.64558624]
[1641257453837,27.66479,168.66,168.56,31.64558624]
[1641257454631,27.66479,168.66,168.56,44.2063983]
[1641257455938,27.66479,168.66,168.58,12.56081206]
[1641257458435,30.66479,168.66,168.58,12.56081206]
[1641257458635,27.66479,168.61,168.58,12.56081206]
[1641257459236,27.66479,168.61,168.57,40.04034903]
[1641257459937,27.66479,168.61,168.53,6.60955355]
[1641257461338,3.13857193,168.6,168.53,6.60955355]
[1641257465545,27.66479,168.61,168.53,6.60955355]
[1641257465745,27.66479,168.61,168.53,14.07555355]
[1641257466549,27.66479,168.61,168.54,1.04443137]
[1641257467250,12.56081206,168.65,168.56,3.0]
[1641257467450,12.56081206,168.65,168.58,3.0]
[1641257467750,12.56081206,168.65,168.58,4.527]
[1641257468253,12.56081206,168.65,168.59,3.0]
[1641257468450,12.56081206,168.68,168.6,6.98079624]
[1641257468648,12.56081206,168.68,168.63,27.66479]
[1641257468850,12.56081206,168.68,168.63,32.23079]
[1641257469049,12.56081206,168.68,168.63,4.566]
[1641257469651,12.56081206,168.68,168.64,1.04443137]
[1641257470649,12.56081206,168.68,168.66,27.66479]
[1641257471353,3.13657629,168.71,168.66,27.66479]
[1641257471551,7.629e-05,168.71,168.66,30.66479]
[1641257471751,17.43080754,168.77,168.7,6.98079624]
[1641257471953,17.43080754,168.77,168.71,3.0]
[1641257472151,17.43080754,168.77,168.7,5.267]
[1641257472353,3.0,168.83,168.7,5.267]
[1641257472651,27.66479,168.81,168.73,27.66479]
[1641257473052,27.66479,168.81,168.7,5.267]
[1641257473254,3.0,168.8,168.69,5.91926128]
[1641257473454,3.0,168.77,168.66,31.01446207]
[1641257473654,3.0,168.79,168.66,31.01446207]
[1641257473853,11.14146163,168.8,168.67,5.59145697]
[1641257474455,14.14146163,168.8,168.67,5.59145697]
[1641257474656,27.66479,168.76,168.67,5.59145697]
[1641257475356,3.0,168.74,168.67,5.59145697]
[1641257475557,3.0,168.74,168.65,8.94112904]
[1641257475757,3.0,168.74,168.65,5.59145697]
[1641257475958,11.14146163,168.75,168.65,5.59145697]
[1641257476158,11.14146163,168.75,168.64,4.612]
[1641257476662,27.66479,168.72,168.64,4.612]
[1641257479762,11.15231348,168.71,168.65,3.0]
[1641257480361,11.15231348,168.71,168.65,8.92066311]
[1641257480563,27.66479,168.72,168.65,8.92066311]
[1641257480761,27.66479,168.72,168.66,6.98079624]
[1641257482463,27.66479,168.76,168.66,6.98079624]
[1641257482665,27.66479,168.76,168.69,27.66479]
[1641257482862,11.14282626,168.75,168.69,32.53479]
[1641257483164,11.14282626,168.75,168.69,4.87]
[1641257483963,11.14282626,168.75,168.65,27.66479]
[1641257484363,14.14282626,168.75,168.65,27.66479]
[1641257484766,11.14282626,168.75,168.65,27.66479]
[1641257487069,11.14282626,168.75,168.66,5.59159014]
[1641257487269,11.14282626,168.75,168.66,11.50359014]
[1641257487870,11.14282626,168.75,168.66,17.42390273]
[1641257488271,55.32958,168.76,168.66,24.40469897]
[1641257489472,55.32958,168.76,168.67,3.0]
[1641257490674,92.86889,168.79,168.67,3.0]
[1641257490874,92.86889,168.79,168.66,24.40469897]
[1641257491873,11.14241767,168.78,168.66,24.40469897]
[1641257492075,11.14241767,168.78,168.67,3.0]
[1641257493474,11.14241767,168.78,168.66,21.40469897]
[1641257493475,11.14241767,168.78,168.66,24.40469897]
[1641257493676,11.14241767,168.78,168.67,3.0]
[1641257494174,44.61175579,168.78,168.67,3.0]
[1641257494674,44.61175579,168.78,168.68,27.66479]
[1641257495075,44.61175579,168.78,168.71,5.91873576]
[1641257495274,44.61175579,168.78,168.71,10.78973576]
[1641257496177,11.14241767,168.78,168.71,10.78973576]
[1641257500080,44.61175579,168.78,168.71,4.871]
[1641257500280,44.61175579,168.78,168.68,33.58457689]
[1641257500480,44.61175579,168.78,168.7,5.337]
[1641257500682,27.66479,168.76,168.7,5.337]
[1641257502182,40.21548218,168.76,168.7,5.337]
[1641257503382,27.66479,168.76,168.7,5.337]
[1641257503982,92.86889,168.79,168.7,5.337]
[1641257504882,92.86889,168.79,168.71,27.66479]
[1641257506690,92.86889,168.79,168.71,30.66479]
[1641257506888,12.55069218,168.77,168.71,30.66479]
[1641257507091,12.55069218,168.77,168.71,27.66479]
[1641257507293,12.55069218,168.77,168.72,3.98079624]
[1641257508093,27.66479,168.82,168.72,3.98079624]
[1641257508094,12.55069218,168.79,168.72,3.98079624]
[1641257509094,12.55069218,168.78,168.72,3.98079624]
[1641257510697,12.55069218,168.78,168.71,27.66479]
[1641257512397,12.55069218,168.78,168.72,1.05109605]
[1641257513199,4.18269353,168.74,168.73,4.18269353]
[1641257513398,9.353e-05,168.74,168.73,4.18269353]
[1641257514099,9.353e-05,168.74,168.73,5.23378958]
[1641257514700,9.353e-05,168.74,168.73,1.05109605]
[1641257515499,12.55069218,168.78,168.73,1.05109605]
[1641257515699,12.55069218,168.79,168.73,1.05109605]
[1641257516502,15.68229031,168.81,168.73,13.60178823]
[1641257516899,15.68229031,168.81,168.74,27.66479]
[1641257517399,15.68229031,168.81,168.73,13.60178823]
[1641257517899,12.55069218,168.8,168.73,1.05109605]
[1641257518402,12.55069218,168.8,168.73,4.05109605]
[1641257518803,12.55069218,168.8,168.73,1.05109605]
[1641257522208,12.55069218,168.8,168.68,48.34912501]
[1641257522509,3.0,168.79,168.68,33.46933812]
[1641257522707,3.0,168.79,168.64,39.39052709]
[1641257522907,33.46933812,168.8,168.64,39.39052709]
[1641257522908,27.66479,168.72,168.64,39.39052709]
[1641257523911,27.66479,168.72,168.64,43.37132333]
[1641257524110,27.66479,168.72,168.67,5.91996211]
[1641257524308,61.3539,168.74,168.67,11.69496211]
[1641257524908,61.3539,168.74,168.67,39.35975211]
[1641257525810,61.3539,168.74,168.67,5.775]
[1641257526012,61.3539,168.74,168.64,68.70441368]
[1641257526214,61.3539,168.74,168.64,5.92101368]
[1641257526816,61.3539,168.74,168.66,27.66479]
[1641257527417,3.0,168.72,168.6,33.46933812]
[1641257527718,3.0,168.73,168.61,33.46933812]
[1641257527916,3.0,168.72,168.61,33.46933812]
[1641257528118,3.0,168.71,168.61,33.46933812]
[1641257528318,3.0,168.72,168.61,33.46933812]
[1641257528518,33.46933812,168.71,168.58,103.90329335]
[1641257528823,27.66479,168.69,168.58,103.90329335]
[1641257531727,27.66479,168.69,168.59,42.89601187]
[1641257531926,27.66479,168.69,168.59,48.31101187]
[1641257532827,55.32958,168.69,168.59,48.31101187]
[1641257533628,55.32958,168.69,168.59,42.89601187]
[1641257533828,55.32958,168.69,168.58,137.37263147]
[1641257534127,49.79662201,168.69,168.58,137.37263147]
[1641257534330,49.79662201,168.69,168.59,42.89617099]
[1641257534933,27.66479,168.66,168.59,42.89617099]
[1641257535533,27.66479,168.66,168.59,33.46933812]
[1641257535834,27.66479,168.66,168.58,94.92329335]
[1641257536434,31.90679,168.66,168.58,94.92329335]
[1641257536836,27.66479,168.63,168.58,94.92329335]
[1641257540439,27.66479,168.63,168.58,89.0]
[1641257541045,27.66479,168.63,168.55,8.92]
[1641257542943,27.66479,168.63,168.55,14.50842519]
[1641257543344,27.66479,168.66,168.56,3.98079624]
[1641257543543,93.65723812,168.68,168.56,9.12179624]
[1641257544345,93.65723812,168.68,168.56,12.12179624]
[1641257544545,93.65723812,168.68,168.56,9.12179624]
[1641257544845,60.1879,168.68,168.56,42.59113436]
[1641257545043,60.1879,168.68,168.6,27.66479]
[1641257545244,60.1879,168.68,168.6,34.20879]
[1641257546646,60.1879,168.68,168.61,5.58830712]
[1641257550952,27.66479,168.64,168.57,5.58830712]
[1641257551352,60.1879,168.68,168.57,5.58830712]
[1641257552554,3.0,168.67,168.57,5.58830712]
[1641257552753,3.0,168.66,168.57,5.58830712]
[1641257552954,27.66479,168.63,168.59,12.5577222]
[1641257553153,34.25279,168.63,168.59,12.5577222]
[1641257554757,40.2225122,168.63,168.55,12.5577222]
[1641257554959,67.8873022,168.63,168.55,12.5577222]
[1641257555656,67.8873022,168.63,168.56,12.5577222]
[1641257555856,55.32958,168.63,168.56,12.5577222]
[1641257556960,67.8873022,168.63,168.55,12.5577222]
[1641257558959,55.32958,168.63,168.54,8.86]
[1641257561864,55.32958,168.63,168.54,26.97084445]
[1641257562268,55.32958,168.63,168.56,6.98079624]
[1641257562464,60.1879,168.68,168.57,5.92346878]
[1641257563064,60.1879,168.68,168.62,27.66479]
[1641257563264,3.13604705,168.67,168.62,5.861]
[1641257564066,3.13604705,168.67,168.63,1.04251622]
[1641257565768,3.13604705,168.67,168.61,12.5577222]
[1641257567270,3.13604705,168.67,168.6,12.5577222]
[1641257567970,3.13604705,168.67,168.61,12.5577222]
[1641257569472,15.69376925,168.67,168.59,27.89336067]
[1641257570072,15.69376925,168.67,168.6,1.04251622]
[1641257573075,12.5577222,168.66,168.6,1.04251622]
[1641257573876,4.18564618,168.63,168.62,4.18564618]
[1641257575776,4.18564618,168.63,168.6,1.04251622]
[1641257576378,4.18564618,168.66,168.6,1.04251622]
[1641257576879,3.13604705,168.67,168.65,4.18562888]
[1641257578181,40.2225122,168.69,168.65,4.18562888]
[1641257578182,3.13604705,168.68,168.65,4.18562888]
[1641257578884,6.13604705,168.68,168.65,4.18562888]
[1641257579085,18.69376925,168.68,168.64,4.18562888]
[1641257579684,3.13604705,168.67,168.63,4.18562888]
[1641257580388,3.13604705,168.67,168.64,4.18562888]
[1641257580986,15.69376925,168.67,168.63,4.18562888]
[1641257581992,3.13604705,168.67,168.61,4.18562888]
[1641257584494,12.5577222,168.67,168.59,5.2281451]
[1641257589397,27.66479,168.65,168.59,5.2281451]
[1641257589596,44.5705122,168.65,168.6,4.18562888]
[1641257589995,3.13604705,168.64,168.6,4.18562888]
[1641257590796,3.13604705,168.64,168.61,4.18562888]
[1641257592397,12.5577222,168.66,168.62,4.18562888]
[1641257592997,12.5577222,168.66,168.61,4.18562888]
[1641257593198,12.5577222,168.65,168.61,4.18562888]
[1641257593797,3.13604705,168.65,168.62,4.18562888]
[1641257595099,17.1167222,168.66,168.59,1.04251622]
[1641257595400,44.7815122,168.66,168.59,1.04251622]
[1641257595799,3.13673716,168.65,168.61,4.18590669]
[1641257596402,44.7815122,168.66,168.58,21.49461256]
[1641257597207,15.69468499,168.65,168.61,4.18609472]
[1641257597410,27.66479,168.62,168.61,4.18609472]
[1641257597606,32.63379,168.62,168.59,1.04913193]
[1641257597808,32.63379,168.62,168.55,12.5577222]
[1641257598908,45.1915122,168.62,168.54,12.5577222]
[1641257599409,27.66479,168.56,168.54,12.5577222]
[1641257599811,27.66479,168.56,168.55,12.5577222]
[1641257600009,27.66479,168.62,168.55,18.6567222]
[1641257601509,27.66479,168.62,168.56,12.5577222]
[1641257604711,27.66479,168.62,168.57,12.5577222]
[1641257606211,27.66479,168.62,168.55,12.5577222]
[1641257607215,27.66479,168.62,168.54,3.34969058]
[1641257607815,24.89831101,168.62,168.54,3.34969058]
[1641257611520,27.66479,168.59,168.54,3.34969058]
[1641257611921,27.66479,168.59,168.54,21.49506012]
[1641257612336,37.45937544,168.62,168.54,21.49506012]
[1641257612520,12.56106443,168.62,168.54,25.90406012]
[1641257612720,12.56106443,168.62,168.55,5.92417062]
[1641257613120,74.89436443,168.64,168.56,12.5577222]
[1641257613521,27.66479,168.61,168.56,12.5577222]
[1641257613920,27.66479,168.61,168.55,18.48189282]
[1641257614123,102.55915443,168.64,168.55,18.48189282]
[1641257614420,102.55915443,168.64,168.55,12.5577222]
[1641257614819,102.55915443,168.64,168.54,8.93733792]
[1641257614820,89.99809,168.64,168.58,12.5577222]
[1641257615622,89.99809,168.64,168.57,12.5577222]
[1641257615921,95.24209,168.64,168.57,12.5577222]
[1641257616923,98.24209,168.64,168.57,12.5577222]
[1641257617524,27.66479,168.59,168.56,12.5577222]
[1641257617725,33.61579,168.59,168.56,12.5577222]
[1641257617924,36.61579,168.59,168.56,12.5577222]
[1641257618123,3.0,168.58,168.55,12.56127994]
[1641257618322,36.61579,168.59,168.55,12.56127994]
[1641257618524,3.0,168.58,168.55,12.56127994]
[1641257618724,36.61579,168.59,168.54,5.58764734]
[1641257618926,36.61579,168.59,168.51,5.58764734]
[1641257619525,27.66479,168.56,168.51,5.58764734]
[1641257621830,27.66479,168.56,168.48,89.0]
[1641257622230,30.66479,168.56,168.48,89.0]
[1641257622429,27.66479,168.56,168.49,3.35083648]
[1641257623428,27.66479,168.56,168.49,8.93820179]
[1641257623929,30.66479,168.56,168.49,8.93820179]
[1641257624529,30.66479,168.56,168.49,3.35083648]
[1641257624530,27.66479,168.56,168.49,3.35083648]
[1641257625333,27.66479,168.56,168.49,8.93817484]
[1641257625533,27.66479,168.56,168.49,5.58733836]
[1641257625932,27.66479,168.56,168.49,8.93801009]
[1641257626734,27.66479,168.56,168.49,3.35067173]
[1641257627133,30.66479,168.56,168.49,3.35067173]
[1641257627337,27.66479,168.56,168.49,3.35067173]
[1641257628135,33.59479,168.56,168.49,3.35067173]
[1641257631439,36.59479,168.56,168.49,3.35067173]
[1641257631940,36.59479,168.56,168.47,3.35067173]
[1641257632640,33.59479,168.56,168.47,3.35067173]
[1641257633340,36.59479,168.56,168.47,3.35067173]
[1641257634541,33.59479,168.56,168.47,3.35067173]
[1641257635741,36.59479,168.56,168.47,3.35067173]
[1641257636048,36.59479,168.56,168.47,8.93595929]
[1641257637443,36.59479,168.56,168.47,5.58528756]